bitfinex/quotes_ETHUSD_20241108
["timestamp","ask_amount","ask_price","bid_price","bid_amount"]
[1731055401166,0.8322,2899.7,2898.5,0.55]
[1731055401399,0.8322,2899.7,2898.7,0.55]
[1731055401813,0.8322,2899.7,2898.9,0.55]
[1731055402507,0.71365419,2899.8,2899.0,0.01]
[1731055402673,0.71365419,2899.8,2899.1,0.8076]
[1731055403001,0.71365419,2899.8,2899.2,0.61896953]
[1731055403204,1.52175419,2900.3,2899.2,0.61896953]
[1731055403365,1.52175419,2900.3,2899.4,0.55]
[1731055403572,1.52175419,2900.3,2899.3,0.7764]
[1731055403573,1.52175419,2900.3,2899.6,0.55]
[1731055403768,1.52175419,2900.3,2899.3,0.7764]
[1731055404069,1.52175419,2900.3,2898.6,3.33320309]
[1731055404070,0.7592,2900.1,2898.8,0.8113]
[1731055404507,0.7592,2900.1,2898.9,0.06897777]
[1731055406010,0.7592,2900.1,2899.0,0.55]
[1731055406173,0.42779105,2900.0,2899.2,0.55]
[1731055406507,0.42779105,2900.0,2899.0,0.55]
[1731055407001,0.42779105,2900.0,2898.9,0.55]
[1731055410283,0.7841,2899.9,2898.9,0.55]
[1731055415004,0.7841,2899.9,2898.9,0.6289753]
[1731055415203,0.7841,2899.9,2899.1,0.55]
[1731055415388,0.7841,2899.9,2899.3,0.55]
[1731055415926,0.7841,2899.9,2899.1,0.55]
[1731055420385,0.7841,2899.9,2899.1,0.55317067]
[1731055425531,0.7841,2899.9,2899.3,0.55]
[1731055425742,0.7841,2899.9,2899.5,0.55]
[1731055430829,3.33320309,2899.8,2899.1,0.00317067]
[1731055431032,0.7603,2899.6,2899.1,0.00317067]
[1731055434357,0.71365419,2899.5,2899.1,0.00317067]
[1731055434539,0.71365419,2899.4,2899.1,0.00317067]
[1731055434854,0.7917,2899.3,2899.1,0.00317067]
[1731055435364,0.7625,2899.2,2899.1,0.00317067]
[1731055435543,1.31716355,2899.2,2899.1,0.00317067]
[1731055435747,1.31716355,2899.2,2899.1,0.00317056]
[1731055436067,1.30716355,2899.2,2899.1,0.00317056]
[1731055437237,1.46615419,2899.2,2899.1,0.00317056]
[1731055437450,0.7525,2899.2,2899.1,0.00317056]
[1731055437943,1.46615419,2899.2,2899.1,0.00317056]
[1731055438357,0.7525,2899.2,2899.1,0.00317056]
[1731055438870,1.46615419,2899.2,2899.1,0.00317056]
[1731055439464,0.7525,2899.2,2899.1,0.00317056]
[1731055441691,0.8284,2899.5,2899.1,0.00317056]
[1731055442035,1.54205419,2899.5,2899.1,0.00317056]
[1731055442236,1.08965355,2899.5,2899.1,0.00317056]
[1731055443181,0.8284,2899.5,2899.1,0.00317056]
[1731055443788,1.53885419,2899.4,2899.1,0.00317056]
[1731055446784,0.71365419,2899.3,2899.1,0.00317056]
[1731055447670,1.53885419,2899.4,2899.1,0.00317056]
[1731055448681,1.79978774,2899.4,2899.1,0.00317056]
[1731055448995,0.71365419,2899.3,2899.1,0.00317056]
[1731055449177,0.8233,2899.2,2899.1,0.00317056]
[1731055449360,1.53695419,2899.2,2899.1,0.00317056]
[1731055451353,0.8233,2899.2,2899.1,0.00317056]
[1731055451682,5.51570392,2899.2,2899.1,0.00317056]
[1731055451899,5.87253102,2899.2,2899.1,0.00317056]
[1731055452557,6.23023065,2899.2,2899.1,0.00317056]
[1731055453194,4.44522263,2899.2,2899.1,0.00317056]
[1731055453571,6.22916551,2899.2,2899.1,0.00317056]
[1731055453772,4.44522263,2899.2,2899.1,0.00317056]
[1731055453989,6.22915167,2899.2,2899.1,0.00317056]
[1731055454187,4.44522263,2899.2,2899.1,0.00317056]
[1731055455298,6.22854761,2899.2,2899.1,0.00317056]
[1731055456196,14.07881406,2899.2,2899.1,0.00317056]
[1731055457693,13.72108884,2899.2,2899.1,0.00317056]
[1731055458081,12.29548908,2899.2,2899.1,0.00317056]
[1731055458295,13.36468232,2899.2,2899.1,0.00317056]
[1731055458494,8.60396645,2899.2,2899.1,0.00317056]
[1731055461185,8.60396645,2899.2,2898.6,0.55]
[1731055461566,3.0,2899.1,2897.3,3.01]
[1731055461766,4.11910309,2899.0,2897.3,3.02]
[1731055461985,4.83194085,2899.0,2897.3,3.02]
[1731055462267,0.48319408,2898.9,2897.6,0.01]
[1731055463288,0.48319408,2898.9,2897.6,0.02]
[1731055463612,4.51293776,2899.2,2897.6,0.02]
[1731055463772,4.51293776,2899.2,2897.6,3.02]
[1731055464109,0.8001,2899.2,2897.9,0.7747]
[1731055464311,0.8001,2899.2,2898.1,0.7747]
[1731055464496,0.8001,2899.2,2898.4,0.55]
[1731055465708,2.07115086,2899.2,2898.4,0.55]
[1731055465894,0.71283776,2899.2,2898.5,0.7564]
[1731055466103,0.71283776,2899.2,2898.6,0.55]
[1731055467670,0.7792,2899.4,2898.6,0.55]
[1731055467869,3.7792,2899.4,2898.6,0.55]
[1731055468281,0.7792,2899.4,2898.6,0.55]
[1731055468488,4.52043776,2899.6,2898.8,0.55]
[1731055468694,5.37940086,2899.6,2898.8,0.55]
[1731055472683,4.52043776,2899.6,2898.8,0.55]
[1731055475083,7.85364085,2899.6,2898.8,0.55]
[1731055475486,7.85364085,2899.6,2898.7,0.7941]
[1731055475909,7.04604085,2899.6,2898.7,0.7941]
[1731055476224,0.7646,2899.5,2898.7,0.7941]
[1731055476388,0.78106408,2899.4,2898.7,0.7941]
[1731055476888,0.78106408,2899.4,2898.8,0.55]
[1731055477082,0.7642,2899.2,2897.8,0.785]
[1731055477308,0.7642,2899.2,2897.8,0.805]
[1731055477713,0.7642,2899.2,2898.0,0.795]
[1731055477886,0.7677,2899.5,2898.0,0.805]
[1731055478496,0.71283776,2899.4,2898.3,0.55]
[1731055478687,0.71283776,2899.4,2898.2,0.7934]
[1731055479017,0.71283776,2899.4,2898.4,0.7604]
[1731055479617,0.7898,2899.3,2898.3,0.55]
[1731055480997,0.7898,2899.3,2898.5,0.55]
[1731055481324,0.7898,2899.3,2898.7,0.55]
[1731055481827,3.33320309,2899.2,2898.7,0.55]
[1731055482118,1.15132031,2899.1,2898.7,0.55]
[1731055482321,0.818,2899.1,2898.7,0.55]
[1731055485299,0.7571,2898.9,2897.7,0.8218]
[1731055485700,1.46993776,2898.9,2897.7,0.8218]
[1731055486627,0.7571,2898.9,2897.8,0.55]
[1731055486829,0.7571,2898.9,2898.0,0.55]
[1731055487132,0.7547,2898.8,2898.0,0.55]
[1731055487425,0.8207,2898.7,2898.0,0.55]
[1731055487990,0.8207,2898.7,2898.0,0.61900285]
[1731055489933,0.8207,2898.7,2897.7,0.7594]
[1731055491248,0.8207,2898.7,2897.8,0.55]
[1731055493213,0.8207,2898.7,2897.5,0.8129]
[1731055493214,0.7623,2898.5,2897.5,0.8129]
[1731055493415,1.47513776,2898.5,2897.5,0.8129]
[1731055493714,0.7623,2898.4,2897.1,0.01]
[1731055493914,0.7623,2898.4,2897.3,0.8129]
[1731055494128,0.8175,2898.3,2897.4,0.06901745]
[1731055494302,0.8175,2898.2,2897.4,0.06901745]
[1731055494508,0.8175,2898.2,2897.3,0.8129]
[1731055495536,0.8175,2898.2,2897.4,0.61901746]
[1731055495957,0.8175,2898.2,2897.4,0.55]
[1731055499680,0.8175,2898.2,2897.6,0.55]
[1731055499819,0.8269,2898.6,2897.7,0.8084]
[1731055500025,0.8269,2898.6,2897.9,0.55]
[1731055500366,0.8269,2898.6,2897.7,0.8084]
[1731055500367,0.8269,2898.6,2898.1,0.55]
[1731055500519,0.8269,2898.9,2898.3,0.55]
[1731055502718,0.8269,2898.9,2897.4,0.55]
[1731055502919,4.04604085,2898.7,2897.3,0.7874]
[1731055503148,0.8036,2898.4,2897.3,0.7874]
[1731055504088,0.8036,2898.4,2897.4,0.7777]
[1731055504295,0.8036,2898.4,2897.8,0.55]
[1731055514065,0.8311,2898.9,2897.9,0.7902]
[1731055514405,0.8311,2898.9,2898.0,0.55]
[1731055515872,0.8311,2898.9,2897.8,0.55]
[1731055520291,0.8311,2898.9,2897.8,0.56]
[1731055520615,0.8311,2898.9,2898.0,0.55]
[1731055520980,0.8311,2898.9,2898.0,0.56]
[1731055521182,0.8281,2899.3,2898.3,0.7831]
[1731055521405,0.8281,2899.3,2898.4,1.0976128]
[1731055521808,0.8281,2899.3,2898.4,1.02863031]
[1731055522088,0.8281,2899.3,2898.4,1.01863031]
[1731055522287,0.8281,2899.3,2898.4,0.55]
[1731055522712,0.8281,2899.3,2897.7,3.0]
[1731055522916,0.8025,2899.1,2897.8,0.777]
[1731055523283,0.8025,2899.0,2897.8,0.777]
[1731055524118,0.7711,2898.9,2897.5,0.811]
[1731055524419,0.8181,2898.7,2897.2,0.8002]
[1731055524622,0.8181,2898.6,2897.2,0.8002]
[1731055525117,0.7777,2898.5,2897.2,0.8002]
[1731055525420,0.7777,2898.4,2897.0,0.7935]
[1731055527005,0.7777,2898.4,2897.1,0.55]
[1731055528331,0.8081,2898.3,2897.1,0.55]
[1731055530151,0.8081,2898.3,2897.0,0.7935]
[1731055530152,0.8081,2898.3,2897.3,0.55]
[1731055530333,0.8081,2898.3,2897.5,0.55]
[1731055534554,0.8081,2898.3,2897.7,0.55]
[1731055535345,0.8081,2898.3,2897.6,0.06901811]
[1731055535346,0.8081,2898.3,2897.9,0.55]
[1731055537250,0.8176,2899.0,2898.1,0.55]
[1731055537404,1.0775631,2899.0,2898.1,0.55]
[1731055537605,0.8176,2898.9,2898.1,0.55]
[1731055538837,0.8176,2899.5,2898.3,0.55]
[1731055540217,0.8241,2899.4,2898.3,0.55]
[1731055543271,1.53693776,2899.4,2897.7,0.01]
[1731055543473,0.8278,2899.2,2897.7,0.01]
[1731055543679,0.8278,2899.2,2897.8,0.7513]
[1731055544535,0.8278,2899.2,2897.9,0.0689995]
[1731055544736,1.28186378,2899.2,2897.9,0.8077]
[1731055544969,1.28186378,2899.2,2898.0,0.55]
[1731055546180,0.8278,2899.2,2898.2,0.55]
[1731055546473,0.7653,2899.5,2898.4,4.70850309]
[1731055546679,0.7653,2899.5,2898.4,1.3753]
[1731055548878,0.7653,2899.5,2898.6,0.55]
[1731055549393,4.06919324,2900.0,2898.8,0.55]
[1731055549394,0.7545,2899.8,2898.8,0.55]
[1731055550282,0.7545,2899.8,2898.7,0.8125]
[1731055550465,0.7545,2899.8,2898.8,0.55]
[1731055557961,0.7545,2899.8,2898.9,0.55]
[1731055560106,0.7545,2899.8,2899.0,0.7604]
[1731055560402,0.7545,2899.8,2899.1,0.55]
[1731055566595,0.8196,2900.3,2899.2,0.7767]
[1731055566807,1.60616409,2900.3,2899.3,0.55]
[1731055567173,0.8196,2900.3,2899.5,0.55]
[1731055567376,9.27586621,2901.2,2899.8,0.55]
[1731055567377,0.773,2900.8,2899.8,0.55]
[1731055567683,0.773,2900.8,2899.7,0.7767]
[1731055567684,0.773,2900.8,2900.0,0.55]
[1731055567878,0.773,2900.8,2899.8,0.55]
[1731055569575,0.773,2900.8,2899.9,0.7767]
[1731055569812,0.773,2900.8,2900.0,0.61895528]
[1731055570017,0.773,2900.8,2899.9,0.8198]
[1731055570202,0.71283776,2901.6,2900.2,0.55]
[1731055570203,0.7993,2901.4,2900.2,0.55]
[1731055570407,0.7993,2901.4,2900.5,0.55]
[1731055570913,0.7993,2901.4,2900.5,0.61894653]
[1731055571211,0.7993,2901.4,2900.7,0.55]
[1731055572133,0.7696,2901.7,2900.9,0.55]
[1731055572310,0.7696,2901.7,2901.1,0.55]
[1731055572625,0.7696,2902.3,2901.2,0.7575]
[1731055572777,0.7696,2902.3,2901.3,0.55]
[1731055573872,0.7934,2902.0,2901.0,0.55]
[1731055574790,0.7934,2902.0,2901.2,0.55]
[1731055575295,0.7934,2902.0,2901.0,0.55]
[1731055581948,0.7934,2902.0,2900.9,0.8173]
[1731055581949,3.7934,2902.0,2900.9,0.8173]
[1731055582196,0.7823,2901.5,2900.0,0.7523]
[1731055582747,0.7823,2901.5,2900.0,0.7623]
[1731055583107,0.7823,2901.5,2900.1,0.88234449]
[1731055583429,0.7823,2901.5,2900.4,0.55]
[1731055583748,0.7823,2901.5,2900.5,0.8034]
[1731055583937,0.7823,2901.5,2900.6,0.55]
[1731055586835,0.8253,2901.7,2900.8,0.55]
[1731055587041,0.8253,2901.7,2901.0,0.55]
[1731055587637,0.8253,2901.7,2901.2,1.3624]
[1731055587945,0.8253,2901.7,2901.2,1.56053343]
[1731055588104,0.8094,2902.3,2901.2,1.56053343]
[1731055588301,0.8094,2902.3,2901.2,1.3624]
[1731055589745,0.01,2901.9,2900.4,0.27499553]
[1731055589944,0.8219,2901.1,2899.4,0.7894]
[1731055590139,0.38219,2901.0,2899.5,0.7894]
[1731055590553,0.8219,2900.9,2899.5,0.7894]
[1731055591455,0.8219,2900.9,2899.6,0.55]
[1731055594480,0.8219,2900.9,2899.8,0.55]
[1731055601917,0.8219,2900.9,2899.9,0.61895101]
[1731055602127,0.8219,2900.9,2900.1,0.55]
[1731055604824,0.8219,2900.9,2900.3,0.55]
[1731055605401,0.8219,2900.9,2900.1,0.55]
[1731055605908,0.7919,2901.5,2900.3,0.55]
[1731055606112,0.7919,2901.5,2900.5,0.55]
[1731055606314,0.7919,2901.5,2900.7,0.55]
[1731055607513,0.7919,2901.5,2900.7,1.3625]
[1731055610238,0.7919,2901.5,2900.5,0.55]
[1731055613926,0.7919,2901.5,2900.7,0.55]
[1731055615401,0.7658,2901.3,2900.7,0.55]
[1731055621350,0.7658,2901.3,2900.0,0.7851]
[1731055621661,0.8237,2901.0,2899.7,0.7851]
[1731055621820,3.33320309,2901.0,2899.7,0.7851]
[1731055622023,0.7574,2900.9,2899.7,0.7851]
[1731055622221,0.7574,2900.9,2899.6,0.35908406]
[1731055622222,1.46822771,2900.9,2899.6,0.35908406]
[1731055622422,0.7574,2900.7,2899.4,0.7578]
[1731055622635,0.7574,2900.7,2899.4,1.11666111]
[1731055623073,4.0440308,2900.7,2899.4,1.11666111]
[1731055623240,0.7867,2900.4,2899.1,0.7601]
[1731055624035,0.7867,2900.4,2899.1,1.03449922]
[1731055624443,0.7934,2900.3,2899.2,0.55]
[1731055625055,0.7934,2900.3,2898.9,0.7524]
[1731055625336,0.8204,2900.1,2898.7,0.7524]
[1731055625777,0.8204,2900.0,2898.7,0.7524]
[1731055626478,0.8204,2900.0,2898.8,0.55]
[1731055626649,3.33320309,2899.8,2898.4,0.8182]
[1731055626978,3.33320309,2899.8,2898.5,0.92495041]
[1731055626979,0.787,2899.7,2898.5,0.92495041]
[1731055627140,0.787,2899.6,2898.2,0.8182]
[1731055627339,0.787,2899.5,2898.0,1.09021778]
[1731055627637,3.0,2899.1,2897.7,0.35901186]
[1731055627963,3.0,2899.1,2897.6,1.379709]
[1731055627964,0.7657,2899.0,2897.6,0.27848311]
[1731055628269,0.7657,2899.0,2897.3,4.52032694]
[1731055628471,0.7657,2898.9,2897.4,0.59000359]
[1731055628851,0.7657,2898.9,2897.4,3.59000359]
[1731055629393,0.7657,2898.9,2897.5,0.55]
[1731055629978,0.7657,2898.9,2897.4,0.59000359]
[1731055630455,0.7657,2898.9,2897.4,3.59000359]
[1731055630651,0.7825,2898.8,2897.5,0.83803464]
[1731055631155,3.33320309,2898.6,2896.9,0.7825]
[1731055631396,0.8105,2898.4,2896.7,4.15490309]
[1731055631550,0.8105,2898.4,2896.7,0.8217]
[1731055631753,0.8105,2898.4,2896.8,0.06902382]
[1731055631988,0.8105,2898.4,2897.2,3.33320309]
[1731055632201,0.8105,2898.4,2896.8,0.06902382]
[1731055632202,0.8105,2898.4,2897.5,3.33320309]
[1731055632881,0.8105,2898.4,2897.6,0.55]
[1731055633482,0.8105,2898.4,2897.9,3.55]
[1731055635197,0.8105,2898.4,2897.7,0.55]
[1731055636880,0.8105,2898.4,2897.6,3.0]
[1731055637089,0.8105,2898.4,2897.3,1.15502031]
[1731055637090,0.8105,2898.4,2897.7,0.3]
[1731055637309,0.8105,2898.4,2897.3,1.15502031]
[1731055637486,0.8105,2898.4,2897.3,0.33332031]
[1731055637872,0.8105,2898.4,2897.2,0.27998665]
[1731055638075,0.8105,2898.4,2897.0,0.7862]
[1731055638691,0.8105,2898.4,2897.0,3.7862]
[1731055638892,0.8105,2898.4,2897.1,0.55]
[1731055640266,0.8105,2898.4,2897.0,4.06609624]
[1731055640267,0.8105,2898.4,2897.0,3.7862]
[1731055640471,0.8105,2898.4,2897.1,0.71194031]
[1731055640709,0.8105,2898.4,2897.5,3.33320309]
[1731055641711,0.8105,2898.4,2897.6,0.811]
[1731055641885,0.8105,2898.4,2897.9,3.55]
[1731055642616,0.8105,2898.4,2897.6,0.811]
[1731055642904,0.8105,2898.4,2897.7,0.96442031]
[1731055644195,0.8105,2898.4,2897.7,0.55]
[1731055644907,0.8105,2898.4,2897.9,0.55]
[1731055645083,0.8105,2898.4,2898.1,0.55]
[1731055647582,0.8105,2898.4,2897.0,1.17545031]
[1731055647785,0.8105,2898.4,2897.0,0.35825031]
[1731055648001,0.8105,2898.4,2896.7,4.09820309]
[1731055648322,0.8105,2898.4,2896.8,0.70982031]
[1731055649980,0.8105,2898.4,2896.9,0.55]
[1731055653087,0.8105,2898.4,2897.1,0.55]
[1731055653289,0.8105,2898.4,2896.9,0.55]
[1731055654216,0.8105,2898.4,2897.1,0.55]
[1731055654518,0.8142,2898.2,2897.1,0.55]
[1731055654720,0.8142,2898.2,2896.9,0.55]
[1731055655078,0.8142,2898.2,2897.1,0.55]
[1731055655284,0.8142,2898.2,2896.9,0.55]
[1731055655480,0.8142,2898.2,2897.1,0.55]
[1731055655713,0.8142,2898.2,2897.2,0.06902307]
[1731055655915,0.8142,2898.2,2897.3,0.55]
[1731055656121,0.8142,2898.2,2897.5,0.55]
[1731055656322,0.8142,2898.2,2897.3,0.55]
[1731055661853,0.8142,2898.2,2897.4,0.06901933]
[1731055662058,0.8142,2898.2,2897.5,0.55]
[1731055663547,0.8142,2898.2,2897.3,0.55]
[1731055663855,0.8142,2898.2,2897.5,0.55]
[1731055669345,0.8142,2898.2,2896.8,3.70982031]
[1731055669346,0.7665,2898.1,2896.9,0.55]
[1731055669551,0.7665,2897.9,2896.3,3.8313]
[1731055669741,0.7665,2897.8,2896.0,8.2413]
[1731055670140,0.7665,2897.6,2896.1,0.35878585]
[1731055671044,0.7665,2897.6,2896.1,3.0]
[1731055671362,0.7617,2897.4,2896.2,1.15233679]
[1731055671538,0.7617,2897.4,2895.8,0.9158101]
[1731055672177,0.7793,2897.3,2895.8,0.1361101]
[1731055672393,0.7793,2897.3,2896.0,3.33320309]
[1731055672932,0.7793,2897.3,2895.8,0.1361101]
[1731055672933,0.7793,2897.3,2895.8,3.1361101]
[1731055673295,0.7793,2897.3,2895.8,0.1361101]
[1731055673492,3.0,2897.4,2895.8,0.1361101]
[1731055673493,0.7793,2897.1,2895.8,0.1361101]
[1731055674605,0.7917,2897.0,2895.8,0.1361101]
[1731055675998,0.7917,2897.0,2895.9,0.55]
[1731055677145,0.7917,2897.0,2896.1,0.55]
[1731055677346,0.7917,2897.0,2896.3,0.55]
[1731055677840,0.7917,2897.0,2896.1,0.55]
[1731055678045,0.7917,2897.0,2896.2,0.069051]
[1731055678210,0.7917,2897.0,2896.3,0.55]
[1731055678644,0.7917,2897.0,2896.4,0.06904463]
[1731055678845,0.7917,2897.0,2896.5,0.55]
[1731055679052,0.7917,2897.0,2896.3,0.55]
[1731055679250,0.7917,2897.0,2896.1,0.55]
[1731055679421,0.7917,2897.0,2896.3,0.55]
[1731055680245,0.7917,2897.0,2896.0,0.27404528]
[1731055680246,0.7917,2897.0,2896.1,0.55]
[1731055680552,0.7917,2897.0,2896.0,0.55]
[1731055681264,0.7917,2897.0,2895.9,0.55]
[1731055681760,0.7917,2897.0,2895.9,0.6190485]
[1731055682337,0.7917,2897.0,2895.9,0.55]
[1731055683450,0.7917,2897.0,2896.1,0.55]
[1731055683755,0.7917,2897.0,2896.3,0.55]
[1731055685634,0.7917,2897.0,2896.1,0.8208]
[1731055685635,0.7917,2897.0,2896.5,0.55]
[1731055686660,0.7917,2897.0,2896.7,0.55]
[1731055687351,0.76,2897.7,2896.9,0.55]
[1731055687641,0.76,2897.7,2896.8,0.55]
[1731055689256,0.8032,2897.5,2896.8,0.55]
[1731055694272,0.8032,2897.5,2896.7,0.55]
[1731055694436,0.8032,2897.5,2896.9,0.55]
[1731055694861,0.8032,2897.5,2896.7,0.55]
[1731055695063,0.8032,2897.5,2897.0,0.06902574]
[1731055695572,0.7886,2898.0,2897.1,1.3301]
[1731055695866,0.7886,2898.0,2897.3,0.55]
[1731055696062,0.7886,2898.0,2897.2,0.55]
[1731055698831,0.7886,2898.0,2896.6,0.785]
[1731055699055,0.8254,2897.8,2896.5,0.27676146]
[1731055699258,0.8254,2897.8,2896.3,0.785]
[1731055700368,0.8254,2897.8,2896.3,1.0688797]
[1731055700665,0.8254,2897.8,2896.5,3.55]
[1731055701036,0.8254,2897.8,2896.5,0.55]
[1731055701232,0.8254,2897.8,2896.4,0.55]
[1731055702242,4.15860309,2897.8,2896.3,1.0688797]
[1731055702477,3.33320309,2897.5,2896.4,0.44277818]
[1731055702643,0.8048,2897.4,2896.4,0.44277818]
[1731055702859,0.8048,2897.4,2896.0,0.7563]
[1731055703163,0.8048,2897.4,2896.2,0.35886269]
[1731055703466,0.8048,2897.4,2896.3,0.06904079]
[1731055703677,0.8048,2897.4,2896.2,0.35886269]
[1731055703833,0.7937,2897.1,2895.8,0.1361101]
[1731055705344,0.7937,2897.1,2895.9,0.55]
[1731055705966,0.7901,2897.0,2895.8,0.1361101]
[1731055707635,0.7901,2897.0,2895.9,0.55]
[1731055709878,0.7575,2897.2,2896.2,3.0]
[1731055710078,0.7575,2897.2,2896.3,1.23832031]
[1731055710744,0.7575,2897.2,2896.3,1.3073572]
[1731055710936,0.7575,2897.2,2896.3,1.23832031]
[1731055711259,0.7575,2897.2,2896.5,3.55]
[1731055711467,0.769,2897.5,2897.0,0.7527]
[1731055711634,0.769,2897.5,2897.2,0.55]
[1731055712177,0.769,2897.5,2897.1,0.55]
[1731055713965,0.8187,2898.4,2897.1,0.55]
[1731055714289,0.8187,2898.4,2897.3,0.55]
[1731055714946,0.8187,2898.4,2897.5,0.55]
[1731055715155,0.8187,2898.4,2897.6,0.0690144]
[1731055715366,0.8187,2898.4,2897.7,0.55]
[1731055715551,0.8187,2898.4,2897.9,0.55]
[1731055715949,0.8187,2898.4,2897.7,0.55]
[1731055716243,0.8187,2898.4,2897.3,0.55]
[1731055716482,0.7655,2898.3,2897.0,1.066242]
[1731055716686,1.06624157,2898.9,2896.4,10.74320309]
[1731055716687,0.7655,2898.0,2896.4,3.33320309]
[1731055716869,0.7655,2898.0,2896.7,1.380429]
[1731055717247,0.7655,2898.0,2896.3,0.68832031]
[1731055717452,0.7655,2898.0,2896.4,1.380492]
[1731055717771,0.7655,2898.0,2896.5,0.06903399]
[1731055718973,0.7655,2898.0,2896.5,0.55]
[1731055719688,0.825,2897.9,2896.5,0.55]
[1731055721774,4.39944466,2898.1,2896.5,0.55]
[1731055721775,3.0,2897.7,2896.5,0.55]
[1731055721952,0.7946,2897.5,2896.5,0.7430492]
[1731055722152,0.7946,2897.5,2896.4,0.55]
[1731055725949,0.7946,2897.5,2896.3,1.38059]
[1731055727295,0.7946,2897.5,2896.4,0.55]
[1731055727789,0.7946,2897.5,2896.6,0.55]
[1731055727990,0.7946,2897.5,2896.8,0.55]
[1731055728351,0.7946,2897.5,2897.0,0.55]
[1731055729314,1.42165543,2898.6,2897.2,0.55]
[1731055729315,0.772,2897.8,2897.2,0.55]
[1731055729532,0.772,2898.7,2897.4,0.55]
[1731055729825,0.772,2898.7,2897.6,0.55]
[1731055730691,0.772,2898.7,2897.5,0.55]
[1731055732619,0.772,2898.7,2897.4,0.55]
[1731055733581,0.7982,2898.6,2897.4,3.55]
[1731055733915,0.7982,2898.5,2897.6,0.55]
[1731055734218,0.7982,2898.5,2897.4,0.55]
[1731055736601,0.7982,2898.5,2897.2,0.55]
[1731055736801,0.7982,2898.5,2897.0,0.55]
[1731055736997,0.7982,2898.5,2896.9,0.55]
[1731055737198,0.7595,2898.3,2896.8,0.28200599]
[1731055737412,0.8189,2898.1,2896.5,4.10730309]
[1731055738603,0.8189,2898.1,2896.6,0.55]
[1731055740333,0.8189,2898.1,2896.8,0.55]
[1731055740491,0.8189,2898.1,2897.0,0.55]
[1731055741392,0.8189,2898.1,2897.0,0.06902768]
[1731055741901,0.8189,2898.1,2897.1,0.55]
[1731055742706,0.8189,2898.1,2897.3,0.55]
[1731055742892,0.8189,2898.1,2897.0,0.7901]
[1731055742893,0.8189,2898.1,2897.5,0.55]
[1731055743436,0.8189,2898.1,2897.3,0.55]
[1731055743600,0.8189,2898.1,2897.5,0.55]
[1731055743950,0.8189,2898.1,2897.7,0.55]
[1731055745135,0.8189,2898.1,2897.9,0.55]
[1731055749351,0.8189,2898.1,2896.9,3.8327]
[1731055750319,0.8189,2898.1,2896.9,0.8327]
[1731055750546,0.8189,2898.1,2897.0,0.45253419]
[1731055751115,0.8189,2898.1,2897.0,0.52155595]
[1731055751382,0.8189,2898.1,2897.1,0.55]
[1731055752070,0.8189,2898.1,2897.3,0.55]
[1731055752933,0.8189,2898.1,2897.5,0.55]
[1731055753454,0.8189,2898.1,2897.3,0.55]
[1731055753651,0.8189,2898.1,2897.5,0.55]
[1731055761263,0.8189,2898.1,2897.0,0.45253419]
[1731055761878,0.8189,2898.1,2896.9,0.63823222]
[1731055762286,0.8189,2898.1,2896.9,0.35908593]
[1731055763756,0.8189,2898.1,2897.0,0.55]
[1731055765055,0.8189,2898.1,2897.2,0.7688]
[1731055765257,0.8189,2898.1,2897.3,1.02921605]
[1731055766776,0.8189,2898.1,2897.3,0.96020031]
[1731055768489,0.8189,2898.1,2897.3,0.55]
[1731055769614,0.8189,2898.1,2897.3,0.82797111]
[1731055769921,0.8189,2898.1,2897.5,0.55]
[1731055770213,0.8189,2898.1,2897.3,0.55]
[1731055772724,0.8189,2898.1,2897.5,3.55]
[1731055772880,0.8189,2898.1,2897.7,0.55]
[1731055775879,0.8189,2898.1,2897.0,0.7917]
[1731055776286,0.8189,2898.1,2897.1,0.06901897]
[1731055776514,0.8189,2898.1,2897.0,0.7917]
[1731055776708,0.8189,2898.1,2897.0,1.07129729]
[1731055776908,0.8189,2898.1,2897.1,0.44404443]
[1731055777122,0.8189,2898.1,2896.9,3.35914697]
[1731055777123,0.8189,2898.1,2896.9,0.35914697]
[1731055777326,0.8189,2898.1,2896.9,0.64161533]
[1731055777486,0.8189,2898.1,2896.9,0.35914697]
[1731055777822,0.8189,2898.1,2897.0,0.84252684]
[1731055777981,0.8189,2898.1,2897.0,0.7735]
[1731055778529,0.8189,2898.1,2897.1,3.33320309]
[1731055778817,0.8189,2898.1,2897.2,0.96067031]
[1731055779020,0.8189,2898.1,2897.2,3.96067031]
[1731055781123,0.8189,2898.1,2897.3,0.06901397]
[1731055781442,0.8189,2898.1,2897.4,0.55]
[1731055781601,0.8189,2898.1,2897.3,0.55]
[1731055781801,0.8189,2898.1,2897.5,0.55]
[1731055783856,0.8189,2898.1,2897.7,0.55]
[1731055784804,0.8189,2898.1,2897.5,0.55]
[1731055786613,0.8189,2898.1,2897.3,0.55]
[1731055786812,0.8189,2898.1,2897.1,0.55]
[1731055787910,0.8189,2898.1,2897.3,0.55]
[1731055790653,0.8189,2898.1,2897.3,0.82379349]
[1731055795361,0.8189,2898.1,2897.5,0.55]
[1731055795723,0.8189,2898.1,2897.2,0.19660182]
[1731055795724,0.8189,2898.1,2897.3,0.55]
[1731055797724,0.8189,2898.1,2897.3,0.8306375]
[1731055804792,0.8189,2898.1,2897.5,0.55]
[1731055805297,0.8189,2898.1,2897.6,0.06901073]
[1731055805464,0.8189,2898.1,2897.5,3.55]